bitfinex-derivatives/quotes_BTCF0:USTF0_20250108
["timestamp","ask_amount","ask_price","bid_price","bid_amount"]
[1736363100981,0.3608,94548.0,94523.0,0.3608]
[1736363101175,0.3608,94548.0,94531.0,0.3608]
[1736363101372,0.3608,94548.0,94547.0,0.052896]
[1736363101683,0.413696,94548.0,94547.0,1.5]
[1736363103485,0.427696,94548.0,94547.0,1.501]
[1736363103679,0.427696,94548.0,94547.0,0.001]
[1736363104076,0.418696,94548.0,94547.0,0.002]
[1736363104482,0.413696,94548.0,94547.0,0.002]
[1736363104677,0.0529,94541.0,94540.0,0.00056]
[1736363104878,0.0529,94540.0,94539.0,0.31191939]
[1736363105177,0.4137,94540.0,94539.0,0.31191939]
[1736363105382,0.052902,94538.0,94537.0,0.31191939]
[1736363106180,0.052906,94530.0,94529.0,0.37951408]
[1736363106382,0.413706,94530.0,94529.0,0.37951408]
[1736363107188,0.413706,94530.0,94513.0,0.36976806]
[1736363107387,0.001,94538.0,94521.0,0.3608]
[1736363107588,0.001,94538.0,94537.0,0.052902]
[1736363107787,0.003,94530.0,94529.0,0.052906]
[1736363108088,0.3608,94577.0,94566.0,0.052886]
[1736363108285,0.052882,94574.0,94566.0,0.052886]
[1736363108479,0.17875363,94578.0,94576.0,0.05288]
[1736363108678,0.12587463,94578.0,94572.0,0.3608]
[1736363109091,0.12587463,94578.0,94576.0,0.05288]
[1736363110184,0.1,94580.0,94579.0,0.052879]
[1736363110391,0.01169395,94580.0,94579.0,1.552879]
[1736363111399,0.052864,94605.0,94598.0,0.052868]
[1736363111784,0.05286,94612.0,94598.0,0.052868]
[1736363111985,0.12606977,94616.0,94598.0,0.052868]
[1736363112185,0.4608,94620.0,94595.0,0.3608]
[1736363112386,0.052859,94615.0,94599.0,0.052867]
[1736363112683,0.052859,94614.0,94599.0,0.052867]
[1736363112881,0.052862,94610.0,94599.0,0.052867]
[1736363113081,0.052862,94610.0,94599.0,1.552867]
[1736363113303,0.052858,94617.0,94599.0,1.552867]
[1736363113489,0.4608,94620.0,94599.0,1.552867]
[1736363113795,0.201,94600.0,94599.0,1.552867]
[1736363113999,0.001,94600.0,94599.0,1.552867]
[1736363114189,0.001,94600.0,94597.0,0.25214728]
[1736363114495,0.052867,94599.0,94597.0,0.25214728]
[1736363114684,0.052867,94599.0,94591.0,0.052871]
[1736363114685,0.052869,94597.0,94593.0,0.05287]
[1736363114884,0.002,94600.0,94594.0,0.3608]
[1736363115298,0.002,94600.0,94593.0,0.05287]
[1736363115693,0.002,94600.0,94598.0,0.052868]
[1736363116093,0.052867,94599.0,94593.0,0.3608]
[1736363116588,0.05287,94595.0,94593.0,0.3608]
[1736363116988,0.001,94600.0,94593.0,0.3608]
[1736363117295,0.052865,94603.0,94600.0,0.052867]
[1736363118182,0.3608,94612.0,94593.0,0.3628]
[1736363118387,0.3608,94601.0,94593.0,0.3638]
[1736363118891,0.052865,94605.0,94599.0,0.052867]
[1736363119092,0.052865,94605.0,94593.0,0.3638]
[1736363119593,0.052868,94599.0,94593.0,0.416671]
[1736363119797,0.3608,94603.0,94593.0,0.3638]
[1736363119988,0.05287,94595.0,94593.0,0.3608]
[1736363120294,0.05287,94595.0,94594.0,1.5]
[1736363120595,0.052866,94602.0,94597.0,0.052868]
[1736363121196,0.052869,94596.0,94594.0,1.50056]
[1736363121496,0.052869,94596.0,94594.0,1.5]
[1736363121692,0.3608,94603.0,94593.0,0.002]
[1736363121693,0.05287,94594.0,94593.0,0.002]
[1736363122198,0.05287,94594.0,94593.0,1.502]
[1736363122387,0.05287,94594.0,94593.0,0.002]
[1736363123397,0.3608,94595.0,94585.0,1.5]
[1736363123597,0.413674,94587.0,94585.0,1.5]
[1736363124491,0.3608,94587.0,94582.0,0.00876944]
[1736363124694,0.3608,94587.0,94581.0,0.052877]
[1736363124892,0.3608,94587.0,94585.0,0.003]
[1736363125091,0.3608,94587.0,94585.0,0.004]
[1736363125291,0.052874,94588.0,94585.0,0.001]
[1736363125492,0.052874,94587.0,94585.0,0.003]
[1736363125989,0.413674,94587.0,94585.0,0.003]
[1736363126193,0.713674,94587.0,94585.0,0.003]
[1736363126400,0.052877,94582.0,94560.0,0.25214728]
[1736363126606,0.3608,94572.0,94559.0,0.25214728]
[1736363126794,0.413683,94572.0,94559.0,0.26147985]
[1736363127900,0.052889,94560.0,94559.0,0.25214728]
[1736363128102,0.413689,94560.0,94559.0,0.25214728]
[1736363128309,0.052886,94567.0,94554.0,0.00916144]
[1736363128492,0.052886,94567.0,94565.0,0.052886]
[1736363128892,0.005,94572.0,94570.0,0.052883]
[1736363129287,0.413669,94596.0,94570.0,0.0094667]
[1736363129492,0.3608,94596.0,94586.0,0.24829733]
[1736363129698,0.052876,94584.0,94573.0,0.052882]
[1736363129892,0.052877,94582.0,94580.0,0.052878]
[1736363130503,0.052877,94582.0,94581.0,1.5]
[1736363130900,0.001,94584.0,94582.0,0.052877]
[1736363131098,0.001,94584.0,94582.0,0.413677]
[1736363131603,0.052876,94583.0,94581.0,1.56250339]
[1736363131809,0.052876,94583.0,94581.0,1.553477]
[1736363132006,0.3608,94596.0,94581.0,1.5006]
[1736363132197,0.3608,94596.0,94582.0,0.003]
[1736363132394,0.3608,94596.0,94587.0,0.052874]
[1736363132596,0.052873,94589.0,94587.0,0.052874]
[1736363133598,0.052874,94588.0,94587.0,0.052874]
[1736363135699,0.413674,94588.0,94587.0,0.052874]
[1736363136001,0.3608,94588.0,94587.0,0.052874]
[1736363136408,0.3608,94588.0,94587.0,1.552874]
[1736363137298,0.413674,94588.0,94587.0,1.552874]
[1736363137493,0.413674,94588.0,94581.0,0.052877]
[1736363137799,0.052877,94581.0,94580.0,0.3608]
[1736363138202,0.052879,94579.0,94578.0,1.50926782]
[1736363138407,0.052881,94575.0,94574.0,0.25214728]
[1736363139001,0.052883,94572.0,94571.0,0.00930363]
[1736363139204,0.052883,94572.0,94569.0,0.052884]
[1736363139510,0.052873,94589.0,94578.0,0.052879]
[1736363139713,0.3608,94588.0,94573.0,0.3608]
[1736363140010,0.16111791,94583.0,94565.0,0.00951542]
[1736363140205,0.052884,94571.0,94570.0,0.052883]
[1736363140711,0.052884,94571.0,94560.0,0.25214728]
[1736363140712,0.052889,94561.0,94560.0,0.25214728]
[1736363140908,0.413689,94561.0,94560.0,0.25214728]
[1736363141410,0.3608,94572.0,94560.0,0.25214728]
[1736363141601,0.3608,94572.0,94564.0,0.25214728]
[1736363141803,0.052886,94566.0,94564.0,0.25214728]
[1736363142008,0.052886,94566.0,94564.0,0.30503328]
[1736363142813,0.052886,94566.0,94564.0,0.25214728]
[1736363143006,0.3608,94572.0,94555.0,0.00956396]
[1736363143207,0.052893,94554.0,94553.0,0.30504028]
[1736363143427,0.052893,94554.0,94553.0,0.25214728]
[1736363143623,0.413693,94554.0,94553.0,0.25214728]
[1736363143823,0.052898,94545.0,94544.0,0.31581638]
[1736363144018,0.413698,94545.0,94544.0,0.31581638]
[1736363144227,0.413698,94545.0,94534.0,0.052903]
[1736363144228,0.052899,94542.0,94534.0,0.052903]
[1736363144823,0.052899,94542.0,94537.0,0.052902]
[1736363145029,0.052899,94542.0,94532.0,0.31581638]
[1736363145734,0.052904,94533.0,94532.0,0.31581638]
[1736363145927,0.052904,94533.0,94510.0,0.44276642]
[1736363145928,0.3608,94534.0,94514.0,1.86136]
[1736363146132,0.052912,94521.0,94514.0,1.50056]
[1736363146324,0.052912,94521.0,94517.0,0.052913]
[1736363146524,0.3608,94526.0,94524.0,0.052909]
[1736363147228,0.3608,94526.0,94517.0,0.052913]
[1736363147431,0.3608,94526.0,94514.0,1.87076694]
[1736363147632,0.052919,94506.0,94502.0,0.052921]
[1736363147933,0.3608,94509.0,94502.0,0.052921]
[1736363148520,0.3608,94509.0,94500.0,0.1108903]
[1736363148724,0.413718,94509.0,94504.0,0.05292]
[1736363148931,0.001,94506.0,94502.0,0.009]
[1736363149129,0.001,94506.0,94505.0,0.05292]
[1736363149725,0.052921,94504.0,94502.0,0.009]
[1736363149932,0.052921,94504.0,94502.0,0.013]
[1736363150330,0.052922,94502.0,94484.0,0.0095145]
[1736363150526,0.413731,94485.0,94482.0,1.50064]
[1736363150724,0.413731,94485.0,94482.0,1.5]
[1736363150924,0.3608,94485.0,94477.0,0.31581638]
[1736363151133,0.052935,94478.0,94477.0,0.31581638]
[1736363151726,0.413735,94478.0,94477.0,0.31581638]
[1736363152025,0.05294,94470.0,94463.0,0.00956972]
[1736363152220,0.3608,94469.0,94458.0,0.052946]
[1736363152927,0.3608,94469.0,94468.0,0.052941]
[1736363153135,0.3608,94469.0,94458.0,0.00966757]
[1736363153136,0.3608,94477.0,94469.0,0.05294]
[1736363153430,0.052947,94458.0,94456.0,0.3608]
[1736363153635,0.052947,94458.0,94457.0,1.5]
[1736363154637,0.3608,94463.0,94458.0,0.052946]
[1736363155031,0.052946,94458.0,94457.0,1.504]
[1736363155232,0.052946,94458.0,94457.0,1.505]
[1736363155431,0.052946,94458.0,94457.0,1.501]
[1736363155731,0.052946,94458.0,94457.0,1.504]
[1736363155928,0.12334976,94463.0,94457.0,1.504]
[1736363156129,0.052946,94458.0,94457.0,0.003]
[1736363157132,0.49346686,94463.0,94448.0,0.16111791]
[1736363157133,0.12334976,94463.0,94448.0,0.16111791]
[1736363157340,0.052939,94471.0,94462.0,0.052944]
[1736363157728,0.3608,94488.0,94465.0,0.3608]
[1736363157929,0.00952281,94486.0,94472.0,0.052938]
[1736363158130,0.05293,94487.0,94473.0,0.3608]
[1736363158433,0.05293,94487.0,94482.0,0.052933]
[1736363159333,0.05293,94487.0,94484.0,0.052931]
[1736363159540,0.052915,94515.0,94513.0,0.052915]
[1736363159724,0.3608,94520.0,94505.0,0.16111791]
[1736363160133,0.3608,94530.0,94515.0,0.3608]
[1736363160335,0.052911,94522.0,94516.0,1.5]
[1736363160536,0.052913,94517.0,94516.0,1.5]
[1736363160838,0.052915,94514.0,94513.0,0.001]
[1736363161132,0.052915,94514.0,94513.0,1.5]
[1736363161335,0.3608,94521.0,94497.0,0.3608]
[1736363161531,0.3608,94512.0,94497.0,0.3608]
[1736363161732,0.052921,94504.0,94498.0,1.5]
[1736363161937,0.05292,94505.0,94498.0,1.5]
[1736363162143,0.052921,94504.0,94498.0,1.5]
[1736363162440,0.009,94517.0,94513.0,0.001]
[1736363162631,0.009,94517.0,94515.0,0.052914]
[1736363163639,0.009,94517.0,94514.0,0.1476]
[1736363163942,0.052914,94517.0,94514.0,0.1476]
[1736363164142,0.001,94521.0,94515.0,0.052914]
[1736363164331,0.052912,94519.0,94515.0,0.052914]
[1736363164532,0.001,94521.0,94514.0,0.1476]
[1736363164732,0.052914,94516.0,94514.0,0.1476]
[1736363164937,0.052914,94516.0,94514.0,0.1486]
[1736363165132,0.009,94517.0,94515.0,0.052914]
[1736363165342,0.004,94517.0,94515.0,0.052914]
[1736363165537,0.004,94517.0,94515.0,0.001]
[1736363165742,0.056913,94517.0,94515.0,0.001]
[1736363166133,0.052913,94517.0,94515.0,0.001]
[1736363167644,0.052914,94515.0,94514.0,0.003]
[1736363168346,0.052914,94515.0,94509.0,0.3608]
[1736363168735,0.00930846,94526.0,94509.0,0.3608]
[1736363168935,0.052917,94511.0,94509.0,0.3608]
[1736363169136,0.3608,94518.0,94495.0,0.00971365]
[1736363169347,0.3608,94509.0,94490.0,0.31581638]
[1736363169542,0.052927,94493.0,94490.0,0.31581638]
[1736363169747,0.052927,94493.0,94488.0,0.31581638]
[1736363170039,0.052929,94490.0,94488.0,0.31581638]
[1736363170547,0.52191791,94500.0,94488.0,0.31581638]
[1736363170840,0.052925,94497.0,94488.0,0.31581638]
[1736363171041,0.3608,94500.0,94487.0,0.05293]
[1736363171239,0.052927,94493.0,94488.0,0.005]
[1736363171636,0.052927,94493.0,94490.0,0.002]
[1736363171948,0.052924,94499.0,94490.0,0.054928]
[1736363172150,0.3608,94509.0,94490.0,0.24369213]
[1736363172650,0.052923,94500.0,94490.0,0.24169213]
[1736363172945,0.052924,94499.0,94490.0,0.24169213]
[1736363173336,0.052924,94499.0,94490.0,0.24269213]
[1736363173536,0.052924,94499.0,94492.0,0.18876413]
[1736363173734,0.052926,94495.0,94492.0,0.18876413]
[1736363174341,0.052927,94493.0,94492.0,0.18876413]
[1736363174746,0.052927,94493.0,94491.0,0.18876413]
[1736363175535,0.052927,94493.0,94492.0,0.001]
[1736363176045,0.052927,94493.0,94473.0,0.37822093]
[1736363176046,0.05293,94487.0,94473.0,0.37822093]
[1736363176247,0.052937,94474.0,94473.0,0.37822093]
[1736363176446,0.3608,94497.0,94490.0,0.052928]
[1736363176651,0.16111791,94510.0,94487.0,0.3608]
[1736363176652,0.3608,94505.0,94487.0,0.3608]
[1736363176844,0.05292,94505.0,94502.0,0.052922]
[1736363177045,0.3608,94516.0,94495.0,0.3608]
[1736363177046,0.052918,94509.0,94505.0,0.05292]
[1736363177245,0.052917,94511.0,94505.0,0.3608]
[1736363177952,0.052919,94508.0,94505.0,0.3608]
[1736363178144,0.3608,94516.0,94495.0,0.3608]
[1736363178453,0.16111791,94510.0,94488.0,0.1508]
[1736363178641,0.005,94511.0,94493.0,0.3608]
[1736363178837,0.005,94511.0,94501.0,0.3608]
[1736363179055,0.005,94511.0,94510.0,0.413717]
[1736363179754,0.005,94511.0,94510.0,1.8608]
[1736363179954,0.052919,94506.0,94505.0,0.001]
[1736363180158,0.052916,94512.0,94505.0,0.004]
[1736363180342,0.052913,94519.0,94506.0,1.5]
[1736363180546,0.3608,94524.0,94514.0,0.052915]
[1736363180854,0.052914,94516.0,94513.0,0.3608]
[1736363181946,0.053914,94516.0,94513.0,0.3608]
[1736363182148,0.052915,94515.0,94513.0,0.3608]
[1736363183150,0.002,94516.0,94513.0,0.3608]
[1736363183350,0.002,94516.0,94515.0,0.052914]
[1736363183552,0.052905,94531.0,94529.0,0.052906]
[1736363183951,0.45420124,94542.0,94530.0,1.5]
[1736363184251,0.09340124,94542.0,94541.0,0.3608]
[1736363184453,0.1555917,94554.0,94541.0,0.3608]
[1736363184646,0.0942752,94551.0,94550.0,0.052895]
[1736363184846,0.12570027,94556.0,94544.0,0.3608]
[1736363184847,0.12570027,94556.0,94555.0,0.052892]
[1736363185050,0.12570027,94556.0,94555.0,1.913692]
[1736363185658,0.1547917,94562.0,94561.0,0.052889]
[1736363186254,0.052886,94566.0,94562.0,0.052888]
[1736363186559,0.052886,94566.0,94565.0,0.3608]
[1736363186755,0.3608,94572.0,94555.0,1.8614]
[1736363186955,0.052888,94562.0,94561.0,0.002]
[1736363187355,0.052884,94569.0,94561.0,0.002]
[1736363187561,0.052884,94569.0,94563.0,0.052887]
[1736363187762,0.3608,94572.0,94569.0,0.052884]
[1736363188462,0.052882,94573.0,94569.0,0.413684]
[1736363188961,0.3608,94583.0,94575.0,0.052881]
[1736363189163,0.052878,94580.0,94575.0,0.052881]
[1736363190461,0.052883,94571.0,94569.0,0.3638]
[1736363190763,0.052883,94571.0,94569.0,0.3618]
[1736363191065,0.052879,94579.0,94571.0,0.052883]
[1736363191261,0.3608,94584.0,94569.0,0.52291791]
[1736363191262,0.001,94580.0,94569.0,0.52291791]
[1736363191573,0.001,94580.0,94572.0,0.052882]
[1736363191868,0.001,94580.0,94569.0,0.52291791]
[1736363192165,0.001,94580.0,94577.0,0.3608]
[1736363192372,0.1,94600.0,94599.0,0.052867]
[1736363192665,0.2,94600.0,94599.0,0.413667]
[1736363192869,0.4608,94620.0,94617.0,0.052857]
[1736363193163,0.4608,94620.0,94613.0,0.052859]
[1736363193164,0.1,94620.0,94613.0,0.052859]
[1736363193557,0.1,94620.0,94619.0,0.3608]
[1736363194464,0.052846,94639.0,94628.0,0.052851]
[1736363194659,0.052846,94639.0,94632.0,0.3608]
[1736363195163,0.052846,94639.0,94632.0,1.8608]
[1736363195870,0.05285,94631.0,94619.0,0.3618]
[1736363196069,0.05285,94631.0,94620.0,0.16111791]
[1736363196274,0.3608,94663.0,94630.0,0.3608]
[1736363196565,0.001,94639.0,94631.0,0.05285]
[1736363197267,0.001,94639.0,94630.0,0.3608]
[1736363197467,0.052846,94638.0,94630.0,0.3608]
[1736363197870,0.002,94639.0,94630.0,0.3608]
[1736363198065,0.052849,94632.0,94630.0,0.3608]
[1736363198259,0.052847,94637.0,94630.0,0.3608]
[1736363198463,0.002,94639.0,94630.0,0.3608]
[1736363198662,0.002,94639.0,94631.0,0.05285]
[1736363199162,0.002,94639.0,94638.0,0.3608]
[1736363199363,0.002,94639.0,94633.0,0.052848]
[1736363199766,0.001,94638.0,94630.0,0.3608]
[1736363200070,0.052848,94634.0,94616.0,0.3608]
[1736363200369,0.1473,94633.0,94616.0,0.3608]
[1736363200571,0.052855,94622.0,94616.0,0.3760351]
[1736363200768,0.1473,94633.0,94616.0,0.3760351]
[1736363200971,0.052855,94622.0,94616.0,0.3760351]
[1736363201362,0.052855,94621.0,94616.0,0.3800351]
[1736363201574,0.052855,94621.0,94616.0,0.3648]
[1736363202171,0.16197701,94633.0,94616.0,0.3648]
[1736363202367,0.052857,94618.0,94616.0,0.3648]
[1736363202567,0.16197701,94633.0,94616.0,0.3648]
[1736363202877,0.052857,94618.0,94616.0,0.3648]
[1736363203170,0.052857,94618.0,94616.0,0.003]
[1736363203375,0.052868,94598.0,94596.0,0.3608]
[1736363204067,0.052868,94598.0,94590.0,1.50056]
[1736363204778,0.06798652,94598.0,94590.0,1.50056]
[1736363205565,0.052864,94605.0,94594.0,0.3608]
[1736363205773,0.413661,94611.0,94597.0,0.00858544]
[1736363206077,0.413661,94611.0,94606.0,0.052863]
[1736363206274,0.3608,94611.0,94599.0,0.052867]
[1736363206779,0.052863,94607.0,94599.0,0.052867]
[1736363207086,0.16111791,94610.0,94599.0,0.052867]
[1736363207275,0.052864,94606.0,94597.0,0.00858544]
[1736363207478,0.001,94611.0,94603.0,0.3608]
[1736363207778,0.001,94611.0,94609.0,0.052861]
[1736363208278,0.052864,94606.0,94604.0,0.052864]
[1736363208777,0.052865,94604.0,94600.0,0.052867]
[1736363208975,0.052866,94601.0,94599.0,0.006]
[1736363209170,0.052866,94601.0,94600.0,1.5]
[1736363209774,0.3608,94619.0,94600.0,1.5]
[1736363209969,0.052861,94610.0,94608.0,0.052862]
[1736363212084,0.052866,94601.0,94600.0,1.504]
[1736363212877,0.052866,94601.0,94600.0,0.004]
[1736363213079,0.052866,94601.0,94600.0,0.001]
[1736363213874,0.052866,94601.0,94600.0,0.002]
[1736363214072,0.052866,94601.0,94600.0,0.001]
[1736363214268,0.052868,94598.0,94597.0,0.00158544]
[1736363214978,0.002,94601.0,94597.0,0.00158544]
[1736363215180,0.003,94601.0,94599.0,0.052867]
[1736363215378,0.003,94601.0,94597.0,0.00158544]
[1736363215575,0.052868,94599.0,94597.0,0.00158544]
[1736363216077,0.052868,94599.0,94598.0,1.5]
[1736363216279,0.052868,94599.0,94597.0,0.00158544]
[1736363216788,0.052868,94599.0,94597.0,0.00558544]
[1736363217475,0.053868,94599.0,94597.0,0.00158544]
[1736363217873,0.06882796,94599.0,94597.0,0.00258544]
[1736363218075,0.07282796,94599.0,94597.0,0.00258544]
[1736363218580,0.07282796,94599.0,94597.0,0.00158544]
[1736363218884,0.07582796,94599.0,94597.0,0.00158544]
[1736363219084,0.052869,94597.0,94574.0,0.24963376]
[1736363219383,0.02295996,94599.0,94569.0,0.31254566]
[1736363219384,0.052884,94571.0,94569.0,0.31254566]
[1736363220284,0.052884,94571.0,94570.0,1.5]
[1736363220975,0.067725,94571.0,94569.0,0.004]
[1736363221578,0.052884,94571.0,94569.0,0.004]
[1736363221881,0.413681,94575.0,94569.0,0.004]
[1736363222101,0.3608,94575.0,94569.0,0.004]
[1736363222286,0.052884,94571.0,94569.0,0.004]
[1736363222471,0.052884,94571.0,94568.0,0.052884]
[1736363222675,0.052885,94569.0,94561.0,0.1552]
[1736363222879,0.052885,94569.0,94566.0,0.052885]
[1736363223083,0.3608,94575.0,94573.0,0.052882]
[1736363223282,0.052878,94581.0,94568.0,0.3608]
[1736363223479,0.052871,94593.0,94587.0,0.052874]
[1736363223672,0.3608,94598.0,94583.0,0.16111791]
[1736363223878,0.3608,94598.0,94596.0,0.052869]
[1736363224080,0.3608,94598.0,94597.0,1.5]
[1736363224380,0.1547917,94614.0,94612.0,0.05286]
[1736363224687,0.2076507,94614.0,94613.0,0.7216]
[1736363225187,0.052859,94614.0,94613.0,0.7216]
[1736363225383,0.052859,94614.0,94613.0,2.2216]
[1736363225586,0.052859,94614.0,94613.0,0.3608]
[1736363226092,0.052859,94614.0,94613.0,0.33879999]
[1736363226288,0.052859,94614.0,94613.0,0.34079999]
[1736363226978,0.052859,94614.0,94613.0,0.33879999]
[1736363227179,0.054859,94614.0,94613.0,0.33879999]
[1736363227587,0.002,94614.0,94613.0,0.33879999]
[1736363228387,0.1,94620.0,94619.0,0.052856]
[1736363228587,0.1,94620.0,94619.0,0.413656]
[1736363229080,0.052847,94636.0,94619.0,0.3608]
[1736363229280,0.052847,94636.0,94635.0,0.3608]
[1736363230080,0.1,94640.0,94635.0,0.7216]
[1736363230385,0.1,94640.0,94636.0,1.5]
[1736363230775,0.052846,94638.0,94636.0,1.5]
[1736363230975,0.1,94640.0,94621.0,0.3608]
[1736363231281,0.052854,94623.0,94621.0,0.3608]
[1736363232375,0.05285,94631.0,94621.0,0.3608]
[1736363232577,0.05285,94631.0,94629.0,0.3608]
[1736363233479,0.052846,94637.0,94629.0,0.3608]
[1736363233677,0.052849,94633.0,94630.0,1.5]
[1736363233880,0.26111791,94640.0,94629.0,0.3608]
[1736363234085,0.05285,94630.0,94629.0,0.3608]
[1736363234283,0.052855,94622.0,94621.0,0.3608]
[1736363234480,0.052858,94617.0,94613.0,0.01494698]
[1736363234792,0.052858,94617.0,94615.0,0.25255649]
[1736363235289,0.06806067,94617.0,94615.0,0.25255649]
[1736363235484,0.052861,94610.0,94608.0,0.2892789]
[1736363235690,0.052861,94610.0,94600.0,0.73902093]
[1736363235691,0.3608,94609.0,94600.0,0.37822093]
[1736363235888,0.052871,94592.0,94591.0,0.25232347]
[1736363236990,0.052871,94592.0,94591.0,0.25332347]
[1736363237480,0.3608,94601.0,94581.0,0.3608]
[1736363237679,0.001,94592.0,94581.0,0.3608]
[1736363237880,0.16111791,94591.0,94581.0,0.3608]
[1736363238082,0.052877,94583.0,94581.0,0.3608]
[1736363238385,0.002,94592.0,94581.0,0.3608]
[1736363238586,0.002,94592.0,94591.0,0.052872]
[1736363239088,0.002,94592.0,94590.0,0.3608]
[1736363239291,0.052872,94591.0,94590.0,0.3608]
[1736363239587,0.052876,94583.0,94581.0,0.3608]
[1736363239785,0.052876,94583.0,94581.0,0.3638]
[1736363240289,0.16111791,94591.0,94569.0,0.3608]
[1736363240477,0.052882,94574.0,94572.0,1.5]
[1736363240677,0.052876,94584.0,94572.0,1.5]
[1736363240886,0.052872,94591.0,94586.0,0.052874]
[1736363241488,0.052872,94591.0,94581.0,0.003]
[1736363241489,0.001,94592.0,94581.0,0.003]
[1736363241679,0.001,94592.0,94591.0,0.3608]
[1736363242189,0.052864,94605.0,94591.0,0.3608]
[1736363242487,0.052867,94600.0,94591.0,1.8608]
[1736363242691,0.3608,94606.0,94591.0,1.8608]
[1736363242888,0.052865,94604.0,94596.0,0.052869]
[1736363243087,0.052865,94604.0,94597.0,0.1625]
[1736363243290,0.00076,94620.0,94601.0,0.052866]
[1736363243483,0.00076,94620.0,94597.0,0.1625]
[1736363243484,0.052851,94629.0,94615.0,0.3608]
[1736363243687,0.052854,94624.0,94603.0,0.3608]
[1736363243888,0.052862,94609.0,94603.0,0.3608]
[1736363244082,0.16111791,94620.0,94603.0,0.3608]
[1736363244083,0.052864,94605.0,94603.0,0.3608]
[1736363244692,0.052862,94610.0,94603.0,0.3608]
[1736363245196,0.052863,94608.0,94603.0,0.3608]
[1736363245400,0.1575993,94607.0,94603.0,0.3608]
[1736363245698,0.2104623,94607.0,94603.0,0.3608]
[1736363245899,0.052864,94605.0,94603.0,0.3608]
[1736363246399,0.052869,94596.0,94595.0,0.3608]
[1736363247997,0.2104683,94596.0,94583.0,1.50056]
[1736363248190,0.052876,94584.0,94583.0,0.00056]
[1736363248497,0.052876,94584.0,94582.0,0.36238571]
[1736363248698,0.052876,94584.0,94582.0,1.86238571]
[1736363249991,0.052876,94584.0,94582.0,1.86438571]
[1736363252987,0.12597278,94590.0,94582.0,1.86438571]
[1736363252988,0.12597278,94590.0,94583.0,0.052876]
[1736363253189,0.12597278,94590.0,94588.0,0.052873]
[1736363253800,0.12597278,94594.0,94587.0,0.3608]
[1736363254192,0.12597278,94594.0,94588.0,1.5]
[1736363254392,0.053873,94590.0,94588.0,1.506]
[1736363255597,0.053873,94590.0,94588.0,1.507]
[1736363255895,0.12597278,94599.0,94598.0,0.052868]
[1736363256097,0.12597278,94599.0,94598.0,0.413668]
[1736363256297,0.1575993,94605.0,94604.0,0.052865]
[1736363256603,0.1575993,94605.0,94604.0,1.552865]
[1736363256803,0.1575993,94605.0,94604.0,1.5]
[1736363257094,0.2104633,94605.0,94604.0,1.5]
[1736363257303,0.52191791,94620.0,94607.0,0.052863]
[1736363257304,0.18911916,94609.0,94607.0,0.052863]
[1736363257900,0.24198116,94609.0,94607.0,0.052863]
[1736363258102,0.18911916,94609.0,94607.0,0.052863]
[1736363258504,0.15773667,94613.0,94610.0,0.052861]
[1736363258801,0.15773667,94613.0,94612.0,0.3608]
[1736363259697,0.15973667,94613.0,94612.0,0.3608]
[1736363260107,0.052866,94602.0,94601.0,0.3608]
[1736363260289,0.052869,94597.0,94596.0,0.3608]
[1736363260706,0.052873,94589.0,94588.0,0.3608]
[1736363261100,0.0142825,94597.0,94594.0,0.05287]
[1736363261398,0.0142825,94597.0,94596.0,0.415669]
[1736363261605,0.003,94613.0,94596.0,0.415669]
[1736363261606,0.003,94613.0,94596.0,0.3628]
[1736363261800,0.003,94613.0,94610.0,0.052861]
[1736363261998,0.1641,94626.0,94610.0,1.5]
[1736363261999,0.052859,94614.0,94610.0,1.5]
[1736363262203,0.1641,94626.0,94609.0,0.3608]
[1736363262403,0.16111791,94620.0,94609.0,0.3608]
[1736363262795,0.052861,94611.0,94609.0,0.3608]
[1736363263708,0.002,94613.0,94596.0,1.86136]
[1736363263901,0.05486,94613.0,94604.0,0.3608]
[1736363264093,0.002,94613.0,94608.0,0.052862]
[1736363264295,0.002,94613.0,94612.0,0.3608]
[1736363264596,0.052859,94614.0,94612.0,0.3608]
[1736363264791,0.052863,94607.0,94605.0,0.301]
[1736363264993,0.006,94620.0,94606.0,0.3608]
[1736363265301,0.006,94620.0,94619.0,0.3608]
[1736363265500,0.004,94620.0,94619.0,0.3608]
[1736363266000,0.052852,94627.0,94619.0,0.413656]
[1736363266193,0.052849,94632.0,94624.0,0.052853]
[1736363266400,0.1,94640.0,94627.0,0.3608]
[1736363266599,0.1,94640.0,94631.0,0.052849]
[1736363267007,0.152845,94640.0,94639.0,0.3608]
[1736363267202,0.1,94640.0,94639.0,0.3608]
[1736363267409,0.052835,94658.0,94647.0,0.05284]
[1736363267609,0.052835,94657.0,94651.0,0.3608]
[1736363267903,0.4151986,94660.0,94651.0,0.3608]
[1736363268100,0.052835,94658.0,94651.0,0.3608]
[1736363268300,0.052836,94655.0,94651.0,0.3608]
[1736363268498,0.052837,94654.0,94651.0,0.3608]
[1736363268701,0.4151986,94660.0,94651.0,0.3608]
[1736363268897,0.052838,94653.0,94651.0,0.3608]
[1736363269104,0.052835,94657.0,94651.0,0.3608]
[1736363269400,0.1,94660.0,94651.0,0.3608]
[1736363269600,0.008,94652.0,94651.0,0.3608]
[1736363269809,0.013,94652.0,94651.0,0.3608]
[1736363270205,0.005,94652.0,94651.0,0.3608]
[1736363270505,0.014,94652.0,94651.0,0.3618]
[1736363271500,0.009,94652.0,94651.0,0.3618]